bitfinex/quotes_ETHUSD_20220311
["timestamp","ask_amount","ask_price","bid_price","bid_amount"]
[1647020107854,1.6019096,2555.6,2555.3,2.25712]
[1647020108054,0.97864,2555.5,2555.3,2.25712]
[1647020108455,1.95729,2555.5,2555.3,2.25712]
[1647020110197,1.95729,2555.5,2555.0,1.93825405]
[1647020110198,2.06294347,2555.4,2555.0,1.93825405]
[1647020110398,2.58073347,2555.3,2555.0,1.93825405]
[1647020110595,2.06294347,2555.2,2555.0,1.93825405]
[1647020110798,1.6021454,2555.1,2555.0,1.93825405]
[1647020110997,2.6121454,2555.1,2555.0,1.93825405]
[1647020111200,3.0731454,2555.1,2555.0,1.93825405]
[1647020112198,2.0731454,2555.1,2555.0,1.93825405]
[1647020112404,2.3731454,2555.1,2555.0,5.405e-05]
[1647020112801,3.3731454,2555.1,2555.0,5.405e-05]
[1647020113844,2.3731454,2555.1,2555.0,5.405e-05]
[1647020114245,0.97884,2555.2,2555.0,5.405e-05]
[1647020114450,2.11919,2555.4,2555.0,5.405e-05]
[1647020114653,1.1405,2555.4,2555.0,5.405e-05]
[1647020115054,1.1405,2555.4,2555.2,1.95716]
[1647020115256,0.02439638,2555.5,2555.2,2.86737996]
[1647020115656,3.8695,2556.3,2555.3,3.5]
[1647020115657,3.87235756,2556.3,2555.3,3.5]
[1647020115855,1.00285756,2556.3,2555.4,0.0803145]
[1647020116254,0.00285756,2556.3,2555.4,0.0803145]
[1647020116457,0.1955,2556.8,2556.0,0.97819]
[1647020116458,0.05161838,2556.7,2556.0,0.97819]
[1647020116656,1.0,2556.8,2556.1,3.57239904]
[1647020116939,1.0,2556.8,2556.1,0.37239904]
[1647020117141,1.0,2556.8,2556.2,3.5]
[1647020117343,1.0,2556.8,2556.3,0.9779547]
[1647020117538,1.0,2556.8,2556.6,0.97793]
[1647020117739,1.0,2556.8,2556.7,0.8886701]
[1647020118440,1.0,2556.8,2556.7,5.3664401]
[1647020118840,1.0,2556.8,2556.7,6.6664401]
[1647020119040,0.05496746,2557.6,2556.9,2.5]
[1647020119242,0.05496746,2557.6,2557.0,3.5]
[1647020119440,0.5,2557.7,2557.4,0.97748]
[1647020119640,0.06388844,2557.9,2557.5,4.41252182]
[1647020119844,0.06388844,2557.9,2557.5,5.41252182]
[1647020119845,0.01187278,2557.9,2557.5,5.41252182]
[1647020120039,0.05092807,2558.1,2557.5,1.91252182]
[1647020120241,0.05092807,2558.1,2557.5,1.88993182]
[1647020120445,0.0039439,2557.8,2557.5,1.88993182]
[1647020121053,0.0039439,2557.8,2557.5,2.86735182]
[1647020121252,0.05092807,2558.1,2557.5,4.84476542]
[1647020121653,0.1953,2558.2,2557.5,4.84476542]
[1647020121654,0.00394393,2557.8,2557.5,4.84476542]
[1647020122153,0.00394393,2557.8,2557.5,0.97741]
[1647020122553,1.0,2557.9,2557.5,0.97741]
[1647020122753,0.05794203,2557.8,2557.5,0.97741]
[1647020123654,0.05146837,2557.6,2557.5,0.97741]
[1647020124400,0.05146837,2557.6,2557.4,1.52453004]
[1647020125005,0.05146837,2557.6,2557.5,0.97741]
[1647020125204,0.05514101,2557.6,2557.5,0.97741]
[1647020125706,0.05514101,2557.6,2557.4,1.52453004]
[1647020125910,1.0,2557.5,2557.4,1.52453004]
[1647020126506,1.0,2557.5,2556.7,0.25]
[1647020126507,13.681,2557.5,2556.7,0.25]
[1647020126708,0.23509168,2557.1,2557.0,0.97798]
[1647020126904,0.461,2557.2,2557.0,0.97798]
[1647020127104,0.1955,2557.4,2556.8,1.95589]
[1647020127105,0.461,2557.1,2556.8,1.95589]
[1647020127906,0.461,2557.1,2556.8,2.25589]
[1647020128151,0.461,2557.1,2556.9,0.97794]
[1647020128757,0.461,2557.1,2556.2,0.25]
[1647020128758,11.92,2557.0,2556.2,0.25]
[1647020128956,0.461,2556.9,2555.7,0.06927996]
[1647020129153,0.461,2556.8,2555.7,0.06927996]
[1647020129356,0.461,2556.7,2555.7,0.06927996]
[1647020129556,0.97823,2556.6,2555.7,0.06927996]
[1647020129753,0.97823,2556.6,2555.6,7.02089401]
[1647020129754,0.97823,2556.6,2556.4,1.95621]
[1647020129954,0.00358038,2556.4,2556.2,0.97827]
[1647020130168,0.00358038,2556.4,2555.6,3.52089401]
[1647020130555,0.97831,2556.3,2555.6,3.52089401]
[1647020130857,0.461,2556.5,2556.0,1.95642]
[1647020131056,0.461,2556.5,2556.3,0.97818]
[1647020132297,0.46461173,2556.5,2556.3,0.97818]
[1647020133400,0.461,2556.5,2556.3,0.97818]
[1647020133599,0.46461173,2556.5,2556.3,0.97818]
[1647020134201,0.46461173,2556.5,2556.2,1.95638]
[1647020134401,1.74296173,2556.5,2556.2,1.95638]
[1647020134603,2.57976437,2556.4,2556.2,1.95638]
[1647020134802,0.97835,2556.4,2556.2,1.95638]
[1647020135207,1.81394203,2556.4,2556.2,1.95638]
[1647020135505,1.81394203,2556.4,2556.2,2.25638]
[1647020135751,3.04100396,2556.3,2555.8,1.95669]
[1647020135951,1.60154396,2556.2,2555.8,1.95669]
[1647020136149,0.461,2556.1,2555.8,1.95669]
[1647020136348,1.43943,2556.1,2555.8,1.95669]
[1647020136548,3.39632,2556.1,2555.8,1.95669]
[1647020137550,3.39632,2556.1,2555.7,3.25684]
[1647020137853,0.97852,2556.0,2555.7,2.95684]
[1647020138349,1.24753667,2556.0,2555.6,0.3]
[1647020138550,1.24753667,2556.0,2555.5,2.25701]
[1647020138750,1.0,2555.8,2555.5,2.25701]
[1647020138951,0.97858,2555.7,2555.5,2.25701]
[1647020140905,15.00588,2556.6,2555.5,2.25701]
[1647020140906,0.05924091,2556.3,2555.5,2.25701]
[1647020141105,0.05924091,2556.3,2555.9,1.95646]
[1647020141406,0.05924091,2556.3,2555.9,2.25646]
[1647020141605,0.05924091,2556.3,2556.0,0.01856715]
[1647020141805,1.00768884,2556.3,2556.0,0.99679715]
[1647020142005,0.97822,2556.2,2556.0,0.01856715]
[1647020143010,1.95659,2556.2,2556.0,0.01856715]
[1647020144549,1.95659,2556.2,2555.7,1.95676]
[1647020144550,0.22920606,2555.8,2555.7,1.95676]
[1647020144750,0.22920606,2555.8,2555.6,0.3]
[1647020144950,0.22920606,2555.8,2555.5,2.25691]
[1647020145655,0.22920606,2555.8,2555.3,1.95705]
[1647020145656,1.20773606,2555.8,2555.3,1.95705]
[1647020145852,0.04881752,2555.7,2555.3,1.95705]
[1647020146051,1.0,2555.5,2555.2,0.00320279]
[1647020146751,1.0,2555.5,2555.2,0.0032052]
[1647020147402,0.97874,2555.4,2555.2,0.0032052]
[1647020147805,0.97874,2555.4,2555.0,5.405e-05]
[1647020148104,0.88413077,2555.3,2555.2,0.0032052]
[1647020149006,0.88413077,2555.3,2555.1,1.95723]
[1647020149210,2.98765999,2555.4,2555.1,1.96043524]
[1647020150312,3.82239355,2555.4,2555.1,1.95723]
[1647020150516,0.88656203,2554.6,2554.5,3.5]
[1647020150757,0.88656203,2554.6,2554.3,2.98728513]
[1647020150955,5.4988183,2555.3,2554.5,0.06499455]
[1647020150956,0.0627295,2555.3,2554.5,0.06499455]
[1647020151153,0.0627295,2555.3,2554.6,2.02102074]
[1647020151351,0.0627295,2555.3,2554.7,0.05467981]
[1647020151952,0.97846,2555.5,2554.8,0.97847]
[1647020152153,0.05946539,2555.7,2554.9,0.06574456]
[1647020152454,3.39641,2555.9,2554.9,0.06574456]
[1647020152455,0.06246312,2555.9,2554.9,0.06574456]
[1647020153053,0.9785,2555.7,2554.9,0.06574456]
[1647020153255,0.07304529,2555.8,2554.9,3.56574456]
[1647020153459,0.07304529,2555.8,2554.9,3.5]
[1647020153654,0.07304529,2555.8,2555.0,0.06676652]
[1647020154157,0.00414702,2555.5,2555.0,0.06676652]
[1647020154422,0.00414702,2555.5,2555.2,0.97831]
[1647020154423,0.98246702,2555.5,2555.2,0.97831]
[1647020155013,0.97832,2555.5,2555.2,0.97831]
[1647020155415,0.98246702,2555.5,2555.0,1.04514652]
[1647020155613,1.35320045,2555.5,2554.8,1.0]
[1647020155812,1.35320045,2555.5,2554.7,0.06117359]
[1647020156018,1.35320045,2555.5,2554.6,0.00387864]
[1647020156215,1.34905343,2555.5,2554.4,0.06526366]
[1647020156414,0.00414711,2555.3,2554.6,0.00387864]
[1647020156615,0.06291665,2555.3,2554.6,0.00387864]
[1647020157315,0.12517023,2555.3,2554.5,1.03962441]
[1647020157515,0.12517023,2555.3,2555.1,0.02816831]
[1647020157717,0.00414697,2555.2,2555.1,0.02816831]
[1647020158549,1.10376023,2555.3,2555.1,0.02816831]
[1647020159046,1.10779102,2555.3,2555.1,0.02816831]
[1647020159751,1.10376023,2555.3,2555.1,0.02816831]
[1647020160150,1.107791,2555.3,2555.1,0.02816831]
[1647020160951,1.10376023,2555.3,2555.1,0.02816831]
[1647020161452,1.107791,2555.3,2555.1,0.02816831]
[1647020162098,1.10376023,2555.3,2555.0,0.97853]
[1647020162599,1.10767438,2555.3,2555.0,0.97853]
[1647020162997,1.04890484,2555.3,2555.0,0.97853]
[1647020163399,1.04499069,2555.3,2555.0,0.97853]
[1647020163603,0.00391417,2555.3,2555.0,0.97853]
[1647020164202,0.92167048,2555.3,2555.0,0.97853]
[1647020164703,0.91775631,2555.3,2555.0,0.97853]
[1647020164904,0.00391417,2555.3,2555.1,0.97849]
[1647020165103,0.00391417,2555.3,2555.1,2.01115505]
[1647020165960,0.00785194,2555.3,2555.0,1.0]
[1647020166157,0.06211867,2555.3,2554.9,0.028145]
[1647020166558,3.50393777,2555.3,2554.9,0.028145]
[1647020166759,1.04887659,2555.1,2554.9,0.028145]
[1647020166957,0.06053323,2555.0,2554.6,0.028145]
[1647020167264,0.06053323,2555.0,2554.6,0.0313257]
[1647020167265,0.05933053,2554.7,2554.6,0.0313257]
[1647020168261,0.05933053,2554.7,2554.6,0.028145]
[1647020171707,0.05933053,2554.7,2554.5,0.02673374]
[1647020171907,0.0582414,2554.7,2554.5,0.0235707]
[1647020172105,0.0582414,2554.7,2554.5,0.02673374]
[1647020173007,0.0582414,2554.7,2554.5,0.0235707]
[1647020173252,0.0582414,2554.7,2554.5,0.02673779]
[1647020174256,0.0582414,2554.7,2554.5,0.0235707]
[1647020174456,0.0582414,2554.7,2554.5,0.02673779]
[1647020175358,0.0582414,2554.7,2554.5,0.0235707]
[1647020175567,0.0582414,2554.7,2554.0,2.0]
[1647020175568,0.10880285,2554.4,2554.0,2.0]
[1647020175757,1.04714139,2554.4,2554.0,2.0]
[1647020176158,1.11195219,2554.4,2554.0,2.19393037]
[1647020176359,0.11195219,2554.4,2554.0,2.19393037]
[1647020176562,0.11195219,2554.4,2554.0,1.19393037]
[1647020177012,0.11195219,2554.4,2554.1,0.00316669]
[1647020177410,0.11195219,2554.4,2554.1,0.19709706]
[1647020177815,0.11195219,2554.4,2554.1,0.19393037]
[1647020180315,0.11195219,2554.4,2554.0,1.0]
[1647020180514,0.11195219,2554.4,2554.1,0.00387141]
[1647020180762,0.07037543,2554.2,2554.1,0.00387141]
[1647020181163,3.53837543,2554.2,2554.1,0.00387141]
[1647020181364,3.53837543,2554.2,2554.0,1.0]
[1647020181563,0.0656744,2554.1,2554.0,1.0]
[1647020181765,0.0656744,2554.1,2554.0,1.00387156]
[1647020182163,3.5656744,2554.1,2554.0,1.00387156]
[1647020182366,3.5496744,2554.1,2554.0,1.00387156]
[1647020182563,5.15268096,2554.1,2554.0,1.0]
[1647020183565,5.13668096,2554.1,2554.0,1.0]
[1647020183765,5.13668096,2554.1,2554.0,0.99366847]
[1647020184165,3.5336744,2554.1,2554.0,0.99366847]
[1647020185010,1.0336744,2554.1,2554.0,0.99366847]
[1647020185509,0.0336744,2554.1,2554.0,0.99366847]
[1647020185714,1.95817,2554.3,2554.0,0.99366847]
[1647020185715,0.05678522,2554.3,2554.0,0.99366847]
[1647020185915,1.02616139,2554.4,2554.0,0.99366847]
[1647020185916,1.18278639,2554.4,2554.0,0.99366847]
[1647020186114,1.02616139,2554.4,2554.0,0.99366847]
[1647020186514,1.02616139,2554.4,2554.0,0.99711416]
[1647020186715,0.04714139,2554.4,2554.0,0.99711416]
[1647020187514,0.04714139,2554.4,2554.0,0.99366847]
[1647020187717,0.04714139,2554.4,2554.1,0.00344562]
[1647020188753,0.04714139,2554.4,2554.0,0.99366847]
[1647020188953,0.04714139,2554.4,2554.1,0.00310477]
[1647020189960,0.04714139,2554.4,2554.0,1.18936847]
[1647020190162,0.04714139,2554.4,2554.1,0.00310477]
[1647020190962,0.04714139,2554.4,2554.0,0.99366847]
[1647020191162,0.04714139,2554.4,2554.0,1.97246337]
[1647020191362,0.04714139,2554.4,2554.1,0.00310477]
[1647020192208,0.04714139,2554.4,2554.0,3.95122337]
[1647020192407,0.04714139,2554.4,2554.0,0.99366847]
[1647020192611,0.04714139,2554.4,2554.1,0.00317283]
[1647020193411,0.04714139,2554.4,2554.0,0.99366847]
[1647020193609,0.04714139,2554.4,2554.1,0.00317283]
[1647020194613,0.04714139,2554.4,2554.0,0.99366847]
[1647020195014,0.04714139,2554.4,2554.1,0.00317283]
[1647020195216,0.04714139,2554.4,2554.2,1.10466166]
[1647020196159,0.04714139,2554.4,2554.2,1.10781911]
[1647020196567,0.04714139,2554.4,2554.2,0.00315745]
[1647020197159,0.04714139,2554.4,2554.0,0.99366847]
[1647020197363,0.04714139,2554.4,2554.2,0.00315745]
[1647020198159,0.04714139,2554.4,2554.1,4.02921624]
[1647020198662,0.04714139,2554.4,2554.2,0.00315745]
[1647020198859,0.97886,2554.6,2554.3,2.5]
[1647020199059,1.27869,2554.7,2554.2,1.98184745]
[1647020199261,0.3,2554.7,2554.3,3.56544422]
[1647020199506,0.19169919,2555.2,2554.4,0.07675514]
[1647020199507,0.13819997,2555.2,2554.4,0.07675514]
[1647020199909,0.14213094,2555.2,2554.4,0.07675514]
[1647020200106,0.9787,2554.9,2554.3,4.69709108]
[1647020200308,0.9787,2554.9,2554.3,1.00316071]
[1647020200309,0.0529071,2554.8,2554.3,1.00316071]
[1647020200709,0.0529071,2554.8,2554.1,2.95729]
[1647020200907,0.0529071,2554.8,2554.1,5.45729]
[1647020201108,0.0529071,2554.8,2554.5,0.00316053]
[1647020201909,0.0529071,2554.8,2554.0,1.26360307]
[1647020202109,0.0529071,2554.8,2554.5,0.00316047]
[1647020203163,0.0529071,2554.8,2554.1,3.5]
[1647020203355,0.0529071,2554.8,2554.5,0.00315969]
[1647020204360,0.0529071,2554.8,2554.1,3.5]
[1647020204562,0.0529071,2554.8,2554.5,0.00315969]
[1647020206663,0.0529071,2554.8,2554.1,0.97874]
[1647020206902,0.0529071,2554.8,2554.5,0.00315987]
[1647020207909,0.0529071,2554.8,2554.3,4.5]
[1647020208110,0.0529071,2554.8,2554.5,0.9786645]
[1647020208310,0.0529071,2554.8,2554.5,0.98182437]
[1647020208509,2.25739,2555.0,2554.5,0.98182437]
[1647020209109,2.25739,2555.0,2554.5,0.9786645]
[1647020209311,2.25739,2555.0,2554.6,0.0031598]
[1647020210317,2.25739,2555.0,2554.5,0.9786645]
[1647020210512,2.25739,2555.0,2554.6,0.00315977]
[1647020210760,0.9787,2554.9,2554.6,0.00315977]
[1647020211262,1.2787,2554.9,2554.6,0.00315977]
[1647020211467,1.2787,2554.9,2554.4,0.07547316]
[1647020211663,0.05452121,2554.7,2554.1,1.9572415]
[1647020211863,0.05452121,2554.7,2554.6,0.00315977]
[1647020212665,0.13314756,2554.6,2554.0,2.95102847]
[1647020212872,1.11196756,2554.6,2554.5,0.00315983]
[1647020213668,0.13314756,2554.6,2554.5,0.00315983]
[1647020213867,0.05149078,2554.5,2554.0,0.99366847]
[1647020214266,0.05149078,2554.5,2554.4,0.00315996]
[1647020214505,1.65417666,2554.5,2554.4,0.00315996]
[1647020215104,1.65417666,2554.5,2554.0,0.99366847]
[1647020215306,1.65711019,2554.4,2554.3,0.00316008]
[1647020215512,1.95711019,2554.4,2554.3,0.00316008]
[1647020215709,1.90268588,2554.4,2554.3,0.00316008]
[1647020216109,0.3,2554.5,2554.3,0.00316008]
[1647020216309,0.3,2554.5,2554.0,0.99366847]
[1647020216511,0.97903,2554.6,2554.2,0.00316021]
[1647020216712,0.97903,2554.6,2554.2,0.98197261]
[1647020217011,0.97903,2554.6,2554.2,0.00316021]
[1647020217413,0.97903,2554.6,2554.0,2.95123747]
[1647020217414,1.1046087,2554.4,2554.0,2.95123747]
[1647020217616,1.27903,2554.6,2554.0,0.99366847]
[1647020217815,1.60258614,2554.5,2554.3,0.00316014]
[1647020218666,1.60258614,2554.5,2554.0,0.99366847]
[1647020218866,1.60258614,2554.5,2554.3,0.00316014]
[1647020219068,1.27903,2554.6,2554.3,0.00316014]
[1647020219069,2.25801,2554.6,2554.3,0.00316014]
[1647020219268,1.95801,2554.6,2554.3,0.00316014]
[1647020219870,1.95801,2554.6,2554.0,0.99366847]
[1647020220269,1.27903,2554.6,2554.3,0.00316008]
[1647020220471,0.00632016,2554.2,2554.0,0.99366847]
[1647020221168,0.9725222,2554.4,2554.0,0.99366847]
[1647020221368,1.09971406,2554.2,2554.0,0.99366847]
[1647020221570,0.39971406,2554.2,2554.0,0.99366847]
[1647020221769,0.09971406,2554.2,2554.0,0.99366847]
[1647020222008,1.39971406,2554.2,2554.0,0.99366847]
[1647020222410,2.37887406,2554.2,2554.0,0.99366847]
[1647020222812,2.27916,2554.2,2554.0,0.99366847]
[1647020223011,1.3,2554.2,2554.0,0.99366847]
[1647020223911,0.3,2554.3,2554.0,0.99366847]
[1647020224315,4.21649,2554.4,2554.0,0.99366847]
[1647020224515,2.25821,2554.4,2554.0,0.99366847]
[1647020224916,2.25821,2554.4,2554.0,0.99753213]
[1647020225115,3.2373,2554.4,2554.0,0.99753213]
[1647020225315,3.393919,2554.4,2554.0,0.99753213]
[1647020225766,0.06143519,2554.2,2554.0,0.99753213]
[1647020225962,0.06143519,2554.2,2554.0,0.99366847]
[1647020226160,0.06143519,2554.2,2554.1,0.00386358]
[1647020227160,0.06143519,2554.2,2554.0,0.99366847]
[1647020227361,0.06143519,2554.2,2554.0,0.99753213]
[1647020228268,0.06143519,2554.2,2554.0,0.99366847]
[1647020228564,0.06143519,2554.2,2554.0,0.9975322]
[1647020229403,0.06143519,2554.2,2554.0,2.95139527]
[1647020229809,0.06143519,2554.2,2554.0,2.95487263]
[1647020230610,0.06143519,2554.2,2554.0,2.95139527]
[1647020231011,0.06143519,2554.2,2554.0,2.95487263]
[1647020231711,0.06143519,2554.2,2554.0,1.97605263]
[1647020231914,0.06143519,2554.2,2554.0,1.97257527]
[1647020232316,0.06143519,2554.2,2554.0,1.97605263]
[1647020233164,0.06143519,2554.2,2554.0,1.97257527]
[1647020233358,0.06143519,2554.2,2554.0,1.97566528]
[1647020234362,0.06143519,2554.2,2554.0,1.97257527]
[1647020234560,0.06143519,2554.2,2554.0,1.97566528]
[1647020235162,0.06143519,2554.2,2554.0,0.99675848]
[1647020235569,0.06143519,2554.2,2554.0,0.99366847]
[1647020235766,0.06143519,2554.2,2554.0,0.99675848]
[1647020236765,0.06143519,2554.2,2554.0,0.99366847]
[1647020237005,0.06143519,2554.2,2554.0,0.99683694]
[1647020238011,0.06143519,2554.2,2554.0,0.99366847]
[1647020238211,0.06143519,2554.2,2554.0,0.99683694]
[1647020239011,0.06143519,2554.2,2554.0,0.99366847]
[1647020239312,0.06143519,2554.2,2554.0,0.99683694]
[1647020240213,0.06143519,2554.2,2554.0,0.99366847]
[1647020240665,0.06143519,2554.2,2554.0,0.99681929]
[1647020241460,1.60284884,2554.1,2554.0,0.99366847]
[1647020241661,1.60284884,2554.1,2554.0,0.99681929]
[1647020241863,0.71296681,2553.9,2553.6,0.01260517]
[1647020242059,0.06252737,2553.8,2553.6,0.01260517]
[1647020242661,0.71149418,2553.9,2553.4,0.3914]
[1647020243061,0.71149418,2553.9,2553.5,3.5]
[1647020243261,0.71149418,2553.9,2553.6,0.08989259]
[1647020243865,0.71149418,2553.9,2553.7,1.06153744]
[1647020244063,0.71149418,2553.9,2553.7,3.01947694]
[1647020244404,0.71149418,2553.9,2553.7,4.01947694]
[1647020244605,0.71149418,2553.9,2553.7,2.9579395]
[1647020244804,0.71149418,2553.9,2553.7,1.9079395]
[1647020245007,0.71149418,2553.9,2553.7,2.9079395]
[1647020245207,0.71149418,2553.9,2553.7,1.9079395]
[1647020245407,0.71149418,2553.9,2553.7,1.90888841]
[1647020246212,0.71149418,2553.9,2553.7,1.9079395]
[1647020246611,2.194,2554.4,2554.0,9.28850582]
[1647020246811,1.60270515,2554.3,2554.0,9.28850582]
[1647020247212,0.55,2554.4,2554.0,9.28850582]
[1647020247412,0.25,2554.4,2554.0,9.28850582]
[1647020247611,0.55,2554.4,2554.0,9.28850582]
[1647020248012,0.25,2554.4,2554.0,9.28850582]
[1647020248262,0.55,2554.4,2554.0,9.28850582]
[1647020249264,0.25,2554.4,2554.0,9.28850582]
[1647020249462,2.95980614,2554.7,2554.0,9.28850582]
[1647020249663,0.19970614,2554.7,2554.0,9.28850582]
[1647020249862,1.22892,2554.7,2554.0,10.28850582]
[1647020250064,0.25,2554.7,2554.0,10.28850582]
[1647020250266,0.25400631,2554.7,2554.0,10.28850582]
[1647020250465,0.25400631,2554.7,2554.0,11.39427971]
[1647020250968,0.25400631,2554.7,2554.1,0.87891]
[1647020251166,0.25,2554.7,2554.1,0.87891]
[1647020251368,0.25391573,2554.7,2554.1,0.97886]
[1647020251766,0.91164051,2555.1,2555.0,3.745302]
[1647020252007,0.71594051,2555.1,2555.0,3.745302]
[1647020252410,0.43830867,2555.2,2555.0,3.745302]
[1647020252610,0.71551453,2555.1,2555.0,3.745302]
[1647020252812,1.28414866,2555.2,2555.0,3.745302]
[1647020253012,1.08864866,2555.2,2555.0,3.745302]
[1647020253611,0.71541901,2555.1,2555.0,3.745302]
[1647020254614,1.71541901,2555.1,2555.0,3.745302]
[1647020254813,1.0,2555.1,2555.0,3.745302]
[1647020255677,1.461,2555.1,2555.0,3.745302]
[1647020255869,2.41144869,2555.1,2555.0,3.745302]
[1647020256670,2.55694869,2555.1,2555.0,3.745302]
[1647020256874,14.48694869,2555.1,2555.0,3.745302]
[1647020257070,13.4838,2555.1,2555.0,2.76892638]
[1647020257270,13.5106,2555.1,2555.0,2.76892638]
[1647020257470,13.5106,2555.1,2554.3,0.07243594]
[1647020257471,18.42,2555.0,2554.3,0.07243594]
[1647020257670,0.96639851,2554.7,2554.3,0.07243594]
[1647020257871,1.44019,2554.6,2554.2,0.00386525]
[1647020258271,0.9496,2554.3,2554.1,0.08603249]
[1647020258473,0.9496,2554.3,2554.2,0.00386525]
[1647020259513,0.9496,2554.3,2554.1,0.08603249]
[1647020259707,0.9496,2554.3,2554.1,0.08902819]
[1647020260713,0.9496,2554.3,2554.1,0.08603249]
[1647020260917,0.01,2554.3,2554.1,0.08902825]
[1647020261519,0.471,2554.3,2554.1,0.08902825]
[1647020261912,0.471,2554.3,2554.1,0.08603249]
[1647020262117,0.461,2554.3,2554.1,0.08603249]
[1647020262713,0.3,2554.3,2554.1,0.08603249]
[1647020263170,0.3,2554.3,2554.0,9.12381753]
[1647020263171,0.34240755,2554.3,2554.0,9.12381753]
[1647020263957,1.34240755,2554.3,2554.0,9.12381753]
[1647020264358,1.80340755,2554.3,2554.0,9.12381753]
[1647020264565,1.80340755,2554.3,2554.0,9.12767561]
[1647020265063,0.80340755,2554.3,2554.0,9.12767561]
[1647020265263,1.0,2554.1,2554.0,9.12767561]
[1647020265466,1.0,2554.1,2554.0,9.12381753]
[1647020265863,1.0,2554.1,2554.0,9.12767561]
[1647020266566,2.76174755,2554.3,2554.0,9.12767561]
[1647020266767,0.04201531,2554.2,2554.0,9.12381753]
[1647020268216,0.25,2554.3,2554.0,9.12767568]
[1647020269219,1.60298437,2554.2,2554.0,9.12381753]
[1647020269418,1.0,2554.1,2554.0,9.12724158]
[1647020269617,2.60298437,2554.1,2554.0,9.12724158]
[1647020270221,1.90298437,2554.1,2554.0,9.12381753]
[1647020271060,1.60298437,2554.1,2554.0,9.12381753]
[1647020271262,1.90298437,2554.1,2554.0,9.12381753]
[1647020273463,2.90298437,2554.1,2554.0,9.12381753]
[1647020274264,1.60298437,2554.1,2554.0,9.12381753]
[1647020274510,1.90298437,2554.1,2554.0,9.12381753]
[1647020278861,0.25,2554.3,2554.0,9.12381753]
[1647020279062,0.711,2554.3,2554.0,9.12381753]
[1647020279262,1.1905,2554.6,2554.1,3.5]
[1647020279462,0.19963358,2554.8,2554.1,0.08049336]
[1647020279662,0.00393358,2554.8,2554.1,0.08049336]
[1647020279864,1.18371,2554.9,2554.2,0.08723241]
[1647020280264,0.00392663,2554.8,2554.4,0.07581778]
[1647020280462,0.00392663,2554.8,2554.2,0.0724106]
[1647020281062,1.18371,2554.9,2554.2,0.06927225]
[1647020281463,0.00392669,2554.8,2554.2,0.0724106]
[1647020282314,1.95791,2554.9,2554.2,0.06927225]
[1647020282515,0.00392669,2554.8,2554.2,0.0724106]
[1647020283517,0.97902,2554.8,2554.2,0.06927225]
[1647020283717,0.97902,2554.8,2554.2,0.07241616]
[1647020283918,0.98294836,2554.8,2554.2,0.07241616]
[1647020284717,0.97902,2554.8,2554.2,0.06927225]
[1647020284917,0.98294836,2554.8,2554.2,0.07241616]
[1647020285119,0.461,2554.7,2554.2,0.07241616]
[1647020285318,0.13429178,2554.1,2554.0,9.12381753]
[1647020291713,0.13429178,2554.1,2554.0,13.70974476]
[1647020292415,2.68083691,2555.2,2555.0,4.69840835]
[1647020292613,0.04876366,2555.1,2555.0,4.69840835]
[1647020292812,0.05876366,2555.1,2555.0,4.69840835]
[1647020293259,2.63786669,2555.2,2555.0,4.69840835]
[1647020293260,1.68266867,2555.2,2555.0,4.69840835]
[1647020293463,0.71672641,2555.1,2555.0,4.69840835]
[1647020294166,1.11702641,2555.2,2555.0,4.69840835]
[1647020294566,0.1046087,2555.1,2555.0,4.69840835]
[1647020294964,0.82133511,2555.1,2555.0,4.69840835]
[1647020295364,0.1046087,2555.1,2555.0,4.69840835]
[1647020295565,0.5656087,2555.1,2555.0,4.69840835]
[1647020295768,0.5656087,2555.1,2555.0,1.17005172]
[1647020295966,1.52080672,2555.1,2555.0,1.17005172]
[1647020296566,1.72560672,2555.1,2555.0,1.17005172]
[1647020297012,0.7704087,2555.1,2555.0,1.17005172]
[1647020297213,0.5656087,2555.1,2555.0,1.17005172]
[1647020297511,0.7704087,2555.1,2555.0,1.17005172]
[1647020298114,0.75997714,2555.1,2555.0,1.17005172]
[1647020298314,0.55517714,2555.1,2555.0,1.17005172]
[1647020299012,0.75997714,2555.1,2555.0,1.17005172]
[1647020299215,2.26849545,2555.1,2555.0,1.17005172]
[1647020300414,2.98524009,2555.1,2555.0,1.17005172]
[1647020301264,2.98516825,2555.1,2555.0,1.17005172]
[1647020301462,2.26849545,2555.1,2555.0,1.17005172]
[1647020302265,2.27849545,2555.1,2555.0,1.17005172]
[1647020302873,2.26849545,2555.1,2555.0,1.17005172]
[1647020303668,2.98497485,2555.1,2555.0,1.17005172]
[1647020303871,2.26849545,2555.1,2555.0,1.17005172]
[1647020304067,2.31915382,2555.1,2555.0,1.17005172]
[1647020305323,0.5394553,2554.6,2554.5,3.5]
[1647020305523,0.5394553,2554.6,2554.3,3.44135693]
[1647020305725,1.60269545,2554.5,2554.4,0.08032549]
[1647020306324,1.60269545,2554.5,2554.1,3.5]
[1647020306629,1.60269545,2554.5,2554.3,0.00315693]
[1647020307624,1.60269545,2554.5,2554.2,0.0697834]
[1647020307824,1.60269545,2554.5,2554.3,0.00315697]
[1647020308272,0.2048,2554.4,2554.3,0.00315697]
[1647020308469,1.80749545,2554.4,2554.3,0.00315697]
[1647020308868,1.80749545,2554.4,2554.2,0.0697834]
[1647020309070,1.80749545,2554.4,2554.2,0.07292509]
[1647020309071,1.60269545,2554.3,2554.2,0.07292509]
[1647020309466,1.60269545,2554.4,2554.2,0.07292509]
[1647020310066,1.60269545,2554.4,2554.2,0.0697834]
[1647020310268,1.60269545,2554.4,2554.2,0.07292515]
[1647020311179,1.60269545,2554.4,2554.2,0.0697834]
[1647020311373,1.60269545,2554.4,2554.2,0.07292515]
[1647020312423,1.60269545,2554.4,2554.2,0.0697834]
[1647020312622,1.60269545,2554.4,2554.2,0.0729286]
[1647020313523,1.60269545,2554.4,2554.2,0.0697834]
[1647020313922,1.60269545,2554.4,2554.2,0.0729286]
[1647020314825,1.60269545,2554.4,2554.2,0.0697834]
[1647020315026,1.60269545,2554.4,2554.2,0.0729286]
[1647020316068,1.60269545,2554.4,2554.2,0.0697834]
[1647020316265,1.60269545,2554.4,2554.2,0.07292783]
[1647020317268,1.60269545,2554.4,2554.2,0.0697834]
[1647020317468,0.5394553,2554.6,2554.2,0.0697834]
[1647020317669,1.60263068,2554.5,2554.2,0.07292783]
[1647020318270,1.60263068,2554.5,2554.3,0.9787977]
[1647020318672,1.60263068,2554.5,2554.3,1.9575477]
[1647020318971,0.5394553,2554.6,2554.4,0.9603405]
[1647020319419,0.5394553,2554.6,2554.4,2.9175812]
[1647020319815,0.5394553,2554.6,2554.4,3.9175812]